bitfinex/quotes_SOLUSD_20260113
["timestamp","ask_amount","ask_price","bid_price","bid_amount"]
[1768340042320,2.61057905,143.55,143.52,8.50602768]
[1768340042911,2.61057905,143.55,143.52,7.82875783]
[1768340043834,2.23160788,143.54,143.52,7.82875783]
[1768340044204,2.61057905,143.55,143.52,7.82875783]
[1768340045028,0.38169271,143.53,143.51,0.1]
[1768340045214,2.57667188,143.53,143.51,0.1]
[1768340045829,2.23160788,143.52,143.51,0.1]
[1768340046409,2.23160788,143.52,143.49,0.67850627]
[1768340047327,3.49235982,143.52,143.49,0.67850627]
[1768340048631,24.37897072,143.57,143.51,3.49235982]
[1768340048843,0.34846029,143.56,143.51,0.67850627]
[1768340049017,4.17369081,143.55,143.51,0.67850627]
[1768340049647,0.68812392,143.56,143.51,0.67850627]
[1768340049948,4.18048374,143.56,143.51,0.67850627]
[1768340050113,3.49235982,143.55,143.51,0.67850627]
[1768340051043,3.49235982,143.56,143.51,0.67850627]
[1768340051421,3.49235982,143.55,143.51,0.67850627]
[1768340052005,3.49235982,143.56,143.5,3.49235982]
[1768340052220,3.49235982,143.51,143.47,0.08921706]
[1768340052407,3.49235982,143.51,143.47,0.76772333]
[1768340052408,0.34846029,143.51,143.47,0.76772333]
[1768340052825,3.84082011,143.51,143.47,0.76772333]
[1768340053344,3.49235982,143.5,143.47,0.76772333]
[1768340053846,3.84414882,143.49,143.47,0.08921706]
[1768340055124,7.65633232,143.51,143.47,0.08921706]
[1768340055332,3.49235982,143.5,143.47,0.08921706]
[1768340055718,3.83742382,143.5,143.47,0.08921706]
[1768340055932,0.68469332,143.49,143.47,0.08921706]
[1768340056832,3.49235982,143.49,143.47,0.08921706]
[1768340059635,3.49235982,143.49,143.46,0.80600211]
[1768340060656,4.2007257,143.5,143.46,0.80600211]
[1768340060950,3.49235982,143.49,143.46,0.80600211]
[1768340061335,4.2007257,143.5,143.46,0.80600211]
[1768340061530,0.70836588,143.5,143.46,0.80600211]
[1768340061847,4.2007257,143.5,143.46,0.80600211]
[1768340062749,3.49235982,143.5,143.46,0.80600211]
[1768340063852,17.41715503,143.54,143.46,0.80600211]
[1768340063853,6.9673635,143.53,143.46,0.80600211]
[1768340064050,3.49235982,143.52,143.46,0.80600211]
[1768340065554,3.49235982,143.51,143.46,0.80600211]
[1768340066236,4.19600904,143.52,143.46,0.80600211]
[1768340069734,3.49235982,143.51,143.46,0.80600211]
[1768340071639,7.20355276,143.54,143.47,0.70600211]
[1768340071830,4.19600904,143.53,143.47,0.70600211]
[1768340072147,3.73372888,143.52,143.47,0.70600211]
[1768340072343,3.49235982,143.52,143.48,0.70600211]
[1768340074456,4.19600904,143.52,143.48,0.70600211]
[1768340074756,3.49235982,143.51,143.48,0.70600211]
[1768340075355,4.19600904,143.52,143.48,0.70600211]
[1768340077455,3.49235982,143.49,143.47,12.7]
[1768340077654,3.75947432,143.49,143.46,62.9]
[1768340078037,4.16589826,143.48,143.46,0.1]
[1768340078246,0.27117874,143.47,143.46,0.1]
[1768340078956,3.76353856,143.47,143.46,0.1]
[1768340080241,0.27117874,143.47,143.46,0.1]
[1768340080441,3.49235982,143.48,143.46,0.1]
[1768340080638,4.17000355,143.49,143.46,0.1]
[1768340082361,3.49235982,143.48,143.46,0.1]
[1768340082562,4.17000355,143.49,143.46,0.1]
[1768340083767,3.49235982,143.48,143.46,0.1]
[1768340083954,0.67764373,143.49,143.46,0.1]
[1768340083955,4.16589826,143.47,143.46,0.1]
[1768340084156,4.17000355,143.48,143.46,0.1]
[1768340085668,3.49235982,143.47,143.46,0.1]
[1768340087146,3.75947432,143.47,143.43,0.67740857]
[1768340087346,3.49235982,143.46,143.43,0.67740857]
[1768340089672,0.67254844,143.46,143.42,0.77740857]
[1768340089875,3.49235982,143.45,143.42,0.77740857]
[1768340090169,4.16490826,143.46,143.42,0.77740857]
[1768340090376,0.67254844,143.46,143.42,0.77740857]
[1768340090563,4.16490826,143.46,143.42,0.77740857]
[1768340091270,3.49235982,143.45,143.42,0.77740857]
[1768340091774,4.16490826,143.46,143.42,0.77740857]
[1768340092577,0.67254844,143.46,143.42,0.77740857]
[1768340092864,4.16490826,143.46,143.42,0.77740857]
[1768340093369,0.67254844,143.46,143.42,0.77740857]
[1768340093579,3.49235982,143.46,143.42,0.77740857]
[1768340093759,0.67764373,143.49,143.42,0.77740857]
[1768340093964,3.49235982,143.48,143.43,0.67740857]
[1768340095465,3.66047432,143.48,143.43,0.67740857]
[1768340095670,3.49235982,143.48,143.43,0.67740857]
[1768340098179,3.49235982,143.49,143.43,0.67740857]
[1768340098782,0.67764373,143.51,143.43,0.67740857]
[1768340098992,3.49235982,143.5,143.45,0.67740857]
[1768340100587,3.66047432,143.5,143.45,0.67740857]
[1768340102187,3.49235982,143.5,143.45,0.67740857]
[1768340102889,0.67764373,143.52,143.45,0.67740857]
[1768340103192,3.49235982,143.51,143.46,0.67740857]
[1768340105283,0.1681145,143.52,143.46,0.67740857]
[1768340105590,3.49235982,143.51,143.46,0.67740857]
[1768340106089,3.49235982,143.5,143.46,0.67740857]
[1768340106486,0.1681145,143.52,143.46,0.67740857]
[1768340106687,3.49235982,143.5,143.46,0.67740857]
[1768340109377,2.92384189,143.48,143.44,13.42010013]
[1768340109586,2.23609821,143.46,143.42,0.1]
[1768340110690,24.38880159,143.51,143.42,0.1]
[1768340110691,24.38880159,143.51,143.42,0.82010013]
[1768340110883,2.23609821,143.46,143.42,0.1]
[1768340111283,2.23609821,143.46,143.43,0.72010013]
[1768340114195,24.38854434,143.51,143.43,0.72010013]
[1768340114504,2.23609821,143.47,143.43,0.72010013]
[1768340114682,24.38854434,143.51,143.43,0.72010013]
[1768340114880,2.23609821,143.47,143.43,0.72010013]
[1768340115374,6.96815552,143.51,143.43,0.72010013]
[1768340115574,2.23609821,143.48,143.43,0.72010013]
[1768340115773,6.96815552,143.51,143.43,0.72010013]
[1768340115971,2.23609821,143.48,143.43,0.72010013]
[1768340117387,2.23609821,143.49,143.43,0.72010013]
[1768340119305,2.23609821,143.48,143.43,0.72010013]
[1768340120107,6.96882792,143.5,143.43,0.72010013]
[1768340120285,2.23609821,143.48,143.43,0.72010013]
[1768340120487,2.23609821,143.48,143.44,0.682032]
[1768340124405,6.96882792,143.5,143.44,0.682032]
[1768340124610,2.23609821,143.5,143.44,0.682032]
[1768340125308,2.23609821,143.49,143.44,0.682032]
[1768340125906,2.23609821,143.47,143.43,0.682032]
[1768340126109,2.23609821,143.46,143.43,0.682032]
[1768340126284,24.38854434,143.51,143.43,0.682032]
[1768340126486,2.23609821,143.48,143.43,0.682032]
[1768340127491,9.20532792,143.49,143.43,0.682032]
[1768340128097,2.23609821,143.48,143.43,0.682032]
[1768340129312,2.23609821,143.48,143.42,0.782032]
[1768340129313,2.23609821,143.47,143.42,0.782032]
[1768340129616,2.23609821,143.46,143.42,0.782032]
[1768340130303,2.23609821,143.47,143.42,0.782032]
[1768340131098,2.23609821,143.46,143.42,0.782032]
[1768340133213,2.23609821,143.47,143.42,0.782032]
[1768340134497,2.23609821,143.48,143.43,0.682032]
[1768340137022,2.23609821,143.49,143.44,0.69076913]
[1768340137390,2.23609821,143.5,143.44,0.69076913]
[1768340137590,2.23609821,143.58,143.45,0.69076913]
[1768340137591,17.41611226,143.55,143.45,0.69076913]
[1768340137791,2.23609821,143.51,143.45,0.69076913]
[1768340138897,2.14533127,143.51,143.47,0.69076913]
[1768340140125,2.23609821,143.5,143.47,0.69076913]
[1768340141730,2.23609821,143.51,143.47,0.69076913]
[1768340141897,2.23609821,143.54,143.48,0.69076913]
[1768340142593,2.23609821,143.53,143.48,0.69076913]
[1768340143798,2.23609821,143.53,143.48,13.39076913]
[1768340144118,2.23609821,143.53,143.49,0.69076913]
[1768340144322,2.23609821,143.54,143.49,0.69076913]
[1768340145922,2.23609821,143.55,143.49,0.69076913]
[1768340146420,2.23609821,143.54,143.49,0.69076913]
[1768340146623,2.23609821,143.55,143.49,0.69076913]
[1768340148025,6.96524343,143.57,143.49,0.69076913]
[1768340148207,2.23609821,143.57,143.51,0.69076913]
[1768340148525,19.66468337,143.59,143.51,0.69076913]
[1768340148718,2.23609821,143.57,143.51,0.69076913]
[1768340153531,37.06986491,143.62,143.51,0.69076913]
[1768340153718,2.23609821,143.57,143.51,0.69076913]
[1768340155033,37.06986491,143.62,143.52,0.69076913]
[1768340155221,2.23609821,143.57,143.52,0.69076913]
[1768340155621,37.06986491,143.62,143.53,0.69076913]
[1768340155934,2.23609821,143.59,143.54,0.69076913]
[1768340156533,37.06986491,143.62,143.54,0.69076913]
[1768340156534,2.23609821,143.6,143.55,0.69076913]
[1768340156830,19.66281854,143.62,143.56,0.69076913]
[1768340156831,6.96281854,143.62,143.56,0.69076913]
[1768340157022,2.23609821,143.62,143.56,0.69076913]
[1768340157227,6.96246444,143.63,143.56,0.69076913]
[1768340157429,2.23609821,143.61,143.56,0.69076913]
[1768340159014,6.96246444,143.63,143.56,0.69076913]
[1768340159231,2.23609821,143.61,143.56,0.69076913]
[1768340160033,2.23609821,143.6,143.56,0.69076913]
[1768340163037,2.23609821,143.61,143.56,0.69076913]
[1768340163919,2.23609821,143.6,143.56,0.69076913]
[1768340164421,2.23609821,143.61,143.56,0.69076913]
[1768340164945,2.23609821,143.6,143.56,0.69076913]
[1768340166042,19.84129883,143.64,143.56,0.69076913]
[1768340166043,2.23609821,143.59,143.56,0.69076913]
[1768340166246,2.23609821,143.58,143.55,13.37050863]
[1768340166553,2.23609821,143.58,143.55,12.7]
[1768340167243,2.23609821,143.57,143.54,0.67050863]
[1768340167824,2.23609821,143.58,143.54,0.67050863]
[1768340168749,2.23609821,143.56,143.53,0.67050863]
[1768340169745,24.3736187,143.6,143.52,13.37050863]
[1768340169746,2.23609821,143.55,143.52,13.37050863]
[1768340169952,2.23609821,143.54,143.52,12.7]
[1768340170250,2.23609821,143.54,143.53,0.67050863]
[1768340170448,2.23609821,143.55,143.53,0.67050863]
[1768340171457,3.49072375,143.55,143.53,0.67050863]
[1768340172327,3.49072375,143.55,143.52,13.37050863]
[1768340173241,6.96529442,143.57,143.53,0.67050863]
[1768340173439,3.49072375,143.54,143.51,0.67050863]
[1768340173755,3.49072375,143.52,143.49,0.67050863]
[1768340176255,3.49072375,143.5,143.47,0.67050863]
[1768340176547,3.49072375,143.48,143.47,0.67050863]
[1768340177153,3.49072375,143.49,143.47,0.67050863]
[1768340177856,3.49072375,143.49,143.46,0.71646549]
[1768340178153,3.49072375,143.5,143.46,0.71646549]
[1768340178529,17.41616162,143.55,143.46,0.71646549]
[1768340178530,3.49072375,143.51,143.46,0.71646549]
[1768340179958,3.49072375,143.52,143.47,0.71646549]
[1768340180256,6.96524343,143.57,143.48,0.71646549]
[1768340180441,3.49072375,143.54,143.48,0.71646549]
[1768340181451,3.49072375,143.54,143.5,0.71646549]
[1768340183149,6.96524343,143.57,143.5,0.71646549]
[1768340183355,3.49072375,143.54,143.5,0.71646549]
[1768340183747,3.49072375,143.53,143.5,0.71646549]
[1768340185157,3.49072375,143.51,143.46,0.71646549]
[1768340185354,3.49072375,143.5,143.46,0.71646549]
[1768340185653,6.96763924,143.53,143.45,13.41646549]
[1768340185654,3.49072375,143.48,143.45,13.41646549]
[1768340185853,3.49072375,143.47,143.42,0.1]
[1768340186058,3.49072375,143.47,143.43,0.71646549]
[1768340186242,3.49072375,143.49,143.44,0.71646549]
[1768340187044,3.49072375,143.51,143.46,0.71646549]
[1768340188159,3.49072375,143.5,143.46,0.71646549]
[1768340190138,3.49072375,143.49,143.46,0.71646549]
[1768340190344,8.01693141,143.55,143.46,13.41646549]
[1768340190551,3.49072375,143.5,143.46,13.41646549]
[1768340191059,3.49072375,143.5,143.47,0.71646549]
[1768340192548,24.38419656,143.54,143.47,0.71646549]
[1768340192857,3.49072375,143.5,143.47,0.71646549]
[1768340193363,24.38419656,143.54,143.47,0.71646549]
[1768340193364,3.49072375,143.51,143.47,0.71646549]
[1768340198566,3.49072375,143.5,143.47,0.71646549]
[1768340198762,3.49072375,143.5,143.46,12.7]
[1768340199374,3.49072375,143.49,143.46,12.7]
[1768340199676,0.34797153,143.49,143.46,12.7]
[1768340199878,3.49072375,143.49,143.46,12.7]
[1768340200078,1.22617154,143.49,143.46,12.7]
[1768340200273,0.02907662,143.49,143.47,0.68842227]
[1768340200580,3.49072375,143.5,143.47,0.68842227]
[1768340203286,3.49072375,143.49,143.46,12.7]
[1768340203656,3.49072375,143.49,143.46,13.38842227]
[1768340203860,6.96824877,143.51,143.43,63.48842227]
[1768340204056,3.49072375,143.48,143.43,0.68842227]
[1768340204267,3.49072375,143.48,143.43,13.38842227]
[1768340204865,3.49072375,143.48,143.44,0.68842227]
[1768340208802,3.49072375,143.46,143.43,13.38842227]
[1768340209179,3.49072375,143.47,143.43,13.38842227]
[1768340210189,3.49072375,143.47,143.43,12.7]
[1768340210674,3.49072375,143.46,143.43,12.7]
[1768340212002,3.49072375,143.46,143.42,0.78842227]
[1768340212489,6.96978219,143.48,143.42,0.78842227]
[1768340212695,3.49072375,143.46,143.42,0.78842227]
[1768340213199,3.49072375,143.47,143.42,0.78842227]
[1768340213370,17.42212142,143.5,143.42,0.78842227]
[1768340213572,17.42212142,143.5,143.43,0.68842227]
[1768340213772,3.49072375,143.48,143.43,0.68842227]
[1768340217002,3.49072375,143.49,143.44,0.68842227]
[1768340217204,3.49072375,143.5,143.45,0.68842227]
[1768340217577,6.96824127,143.51,143.45,0.68842227]
[1768340217906,3.49072375,143.49,143.45,0.68842227]
[1768340221589,3.49072375,143.5,143.45,0.68842227]
[1768340222480,3.49072375,143.49,143.45,0.68842227]
[1768340227712,3.49072375,143.49,143.44,13.41046398]
[1768340227893,3.49072375,143.47,143.43,0.71046398]
[1768340228615,3.49072375,143.5,143.45,0.71046398]
[1768340229899,10.459519,143.5,143.45,0.71046398]
[1768340230617,3.49072375,143.49,143.45,0.71046398]
[1768340231402,2.23615263,143.49,143.45,0.71046398]
[1768340233102,2.23615263,143.48,143.44,0.71046398]
[1768340233796,6.96920705,143.49,143.42,0.81046398]
[1768340233797,2.23615263,143.46,143.42,0.81046398]
[1768340234003,2.23615263,143.45,143.42,0.81046398]
[1768340235007,9.20723387,143.45,143.42,0.81046398]
[1768340235697,6.97009827,143.47,143.43,0.71046398]
[1768340236113,9.2062509,143.47,143.43,0.71046398]
[1768340238527,6.97009827,143.47,143.43,0.71046398]
[1768340238695,2.23615263,143.47,143.43,0.71046398]
[1768340240431,9.20638641,143.47,143.43,0.71046398]
[1768340240717,2.23615263,143.44,143.39,7.46058484]
[1768340240897,2.23615263,143.42,143.39,7.46058484]
[1768340242440,2.23615263,143.46,143.39,7.46058484]
[1768340242637,2.23615263,143.43,143.39,7.46058484]
[1768340242842,6.97107005,143.45,143.39,7.46058484]
[1768340243009,2.23615263,143.43,143.39,7.46058484]
[1768340243437,2.23615263,143.42,143.39,7.46058484]
[1768340243615,2.23615263,143.42,143.4,0.66688169]
[1768340245341,2.23615263,143.42,143.39,7.46058484]
[1768340245947,1.76616708,143.42,143.39,7.46058484]
[1768340247055,24.39874519,143.45,143.4,0.66688169]
[1768340247338,2.23615263,143.42,143.4,0.66688169]
[1768340252044,2.23615263,143.41,143.39,6.79370315]
[1768340256960,2.23615263,143.41,143.38,0.76688169]
[1768340257131,6.97265386,143.42,143.38,0.76688169]
[1768340257332,2.23615263,143.41,143.38,0.76688169]
[1768340257654,2.23615263,143.41,143.38,0.1]
[1768340257829,2.23615263,143.41,143.38,0.80958522]
[1768340258833,2.23615263,143.42,143.38,0.80958522]
[1768340259160,2.23615263,143.41,143.38,0.80958522]
[1768340260942,9.20924922,143.41,143.38,0.80958522]
[1768340261139,2.23615263,143.41,143.38,0.80958522]
[1768340261442,9.20925595,143.41,143.38,0.80958522]
[1768340264335,17.43184741,143.42,143.38,0.80958522]
[1768340264536,2.23615263,143.4,143.38,0.80958522]
[1768340265143,2.23615263,143.41,143.38,0.80958522]
[1768340265949,21.61626333,143.46,143.38,0.80958522]
[1768340265950,17.42937401,143.44,143.38,0.80958522]
[1768340266157,2.23615263,143.42,143.38,0.80958522]
[1768340266453,9.20876389,143.42,143.38,0.80958522]
[1768340267847,17.42937401,143.44,143.38,0.80958522]
[1768340268055,2.23615263,143.42,143.38,0.80958522]
[1768340268867,9.20897113,143.42,143.38,0.80958522]
[1768340269358,2.23615263,143.43,143.38,0.80958522]
[1768340272561,2.23615263,143.42,143.38,0.80958522]
[1768340272763,6.97224587,143.43,143.4,0.70958522]
[1768340272941,2.23615263,143.42,143.4,0.70958522]
[1768340273351,2.20615264,143.42,143.4,0.70958522]
[1768340275362,2.23615263,143.43,143.4,0.70958522]
[1768340275564,2.23615263,143.42,143.39,0.70958522]
[1768340276360,6.97107005,143.45,143.39,0.70958522]
[1768340276561,2.23615263,143.44,143.39,0.70958522]
[1768340277435,6.97066291,143.46,143.41,0.70958522]
[1768340277663,9.20645096,143.47,143.41,0.70958522]
[1768340278156,2.23615263,143.47,143.42,0.70958522]
[1768340278853,9.20627097,143.47,143.42,0.70958522]
[1768340280163,2.23615263,143.46,143.42,0.70958522]
[1768340281964,6.96829425,143.51,143.45,0.70958522]
[1768340282266,2.23615263,143.5,143.45,0.70958522]
[1768340282638,12.7,143.55,143.45,0.70958522]
[1768340282838,5.20080139,143.54,143.45,0.70958522]
[1768340283066,2.23615263,143.51,143.45,0.70958522]
[1768340283846,59.21090623,143.56,143.44,14.93615263]
[1768340283847,24.38005014,143.56,143.47,0.70958522]
[1768340284046,2.23615263,143.52,143.47,0.70958522]
[1768340284364,6.96732649,143.53,143.47,0.70958522]
[1768340284556,2.23615263,143.52,143.47,0.70958522]
[1768340285183,2.23615263,143.53,143.49,0.7146774]
[1768340285484,2.14683484,143.53,143.5,0.7146774]
[1768340285946,2.23615263,143.54,143.5,0.7146774]
[1768340286261,9.2025636,143.55,143.5,0.7146774]
[1768340286856,2.23615263,143.54,143.5,0.7146774]
[1768340287876,6.96641097,143.55,143.5,0.7146774]
[1768340288168,2.23615263,143.54,143.5,0.7146774]
[1768340289566,6.96641097,143.55,143.5,0.7146774]
[1768340289768,2.23615263,143.54,143.5,0.7146774]
[1768340291463,9.20309696,143.54,143.5,0.7146774]
[1768340293478,10.45818393,143.54,143.5,0.7146774]
[1768340294180,6.96694433,143.54,143.5,0.7146774]
[1768340294350,3.4912396,143.55,143.5,0.7146774]
[1768340295066,3.4912396,143.54,143.5,0.7146774]
[1768340295373,10.45799809,143.54,143.5,0.7146774]
[1768340295959,3.4912396,143.54,143.5,0.7146774]
[1768340298384,6.96642197,143.55,143.5,0.7146774]
[1768340298575,3.4912396,143.54,143.5,0.7146774]
[1768340299569,0.2,143.57,143.51,0.67181238]
[1768340299765,3.4912396,143.56,143.51,0.67181238]
[1768340301676,7.16545698,143.57,143.51,0.67181238]
[1768340301883,3.4912396,143.56,143.51,0.67181238]
[1768340302264,10.65669658,143.57,143.51,0.67181238]
[1768340302959,3.4912396,143.56,143.51,0.67181238]
[1768340303159,10.45700928,143.56,143.51,0.67181238]
[1768340304276,3.4912396,143.56,143.51,0.67181238]
[1768340304995,10.6566936,143.57,143.51,0.67181238]
[1768340305283,3.4912396,143.56,143.51,0.67181238]
[1768340306783,0.2,143.57,143.51,0.67181238]
[1768340307089,10.65660082,143.57,143.52,0.67181238]
[1768340307384,3.4912396,143.56,143.52,0.67181238]
[1768340307565,10.65660082,143.57,143.52,0.67181238]
[1768340308085,0.2,143.57,143.52,0.67181238]
[1768340308261,3.6912396,143.57,143.52,0.67181238]
[1768340310893,0.2,143.57,143.52,0.67181238]
[1768340311066,0.2,143.57,143.53,0.67181238]
[1768340311267,0.2,143.57,143.54,0.67181238]
[1768340312587,3.6912396,143.61,143.57,0.67181238]
[1768340313870,0.2,143.61,143.57,0.67181238]
[1768340314188,3.6912396,143.61,143.57,0.67181238]
[1768340314590,3.4912396,143.6,143.57,0.67181238]
[1768340315186,0.2,143.61,143.57,0.67181238]
[1768340315389,3.4912396,143.6,143.57,0.67181238]
[1768340315589,3.4912396,143.6,143.57,0.61181238]
[1768340317199,3.6908236,143.59,143.53,62.8]
[1768340317382,3.4912396,143.57,143.54,12.7]
[1768340317586,3.4912396,143.56,143.54,12.7]
[1768340317789,3.4912396,143.56,143.53,13.38486731]
[1768340318098,24.37353052,143.6,143.5,0.68486731]
[1768340318099,3.4912396,143.54,143.5,0.68486731]
[1768340319581,7.22633326,143.55,143.5,0.68486731]
[1768340319781,3.4912396,143.54,143.5,0.68486731]
[1768340321902,3.4912396,143.58,143.5,0.68486731]
[1768340321903,0.26,143.56,143.5,0.68486731]
[1768340322200,3.7512396,143.56,143.51,0.68486731]
[1768340324490,3.4912396,143.55,143.51,0.68486731]
[1768340325886,3.4912396,143.54,143.51,0.68486731]
[1768340326094,3.7496296,143.54,143.51,0.68486731]
[1768340326489,3.4912396,143.54,143.51,0.68486731]
[1768340334407,3.7496296,143.53,143.49,0.68486731]
[1768340334705,3.4912396,143.51,143.48,13.38486731]
[1768340336614,3.4912396,143.51,143.48,0.68486731]
[1768340341496,3.4912396,143.5,143.46,0.68486731]
[1768340341693,3.59339569,143.5,143.46,0.68486731]
[1768340341897,3.4912396,143.49,143.46,0.68486731]
[1768340342605,3.4912396,143.5,143.46,0.68486731]
[1768340343217,3.5918335,143.49,143.46,0.68486731]
[1768340343595,3.4912396,143.48,143.46,0.68486731]
[1768340344304,3.4912396,143.49,143.46,0.68486731]
[1768340344915,3.5902396,143.49,143.46,0.68486731]
[1768340345121,3.4912396,143.48,143.46,0.68486731]
[1768340346019,3.4912396,143.48,143.43,0.67784231]
[1768340346222,6.96916624,143.49,143.43,0.67784231]
[1768340346223,3.4912396,143.47,143.44,0.67784231]
[1768340346910,3.4912396,143.46,143.44,0.67784231]
[1768340347112,3.46123961,143.46,143.44,0.67784231]
[1768340347535,3.4912396,143.47,143.44,0.67784231]
[1768340351723,7.22974649,143.48,143.44,0.67784231]
[1768340351915,3.4912396,143.47,143.44,0.67784231]
[1768340353328,2.23672814,143.47,143.44,0.67784231]
[1768340357146,0.26,143.49,143.44,0.67784231]
[1768340357437,2.49672814,143.49,143.44,0.67784231]
[1768340358625,2.23672814,143.48,143.44,0.67784231]
[1768340360840,2.23672814,143.47,143.44,0.67784231]
[1768340362713,2.33572814,143.48,143.44,0.67784231]
[1768340368240,2.33572814,143.48,143.43,63.47766815]
[1768340368241,2.49511814,143.47,143.43,63.47766815]
[1768340369235,2.23672814,143.44,143.42,20.38651542]
[1768340369417,2.23672814,143.44,143.42,0.67766815]
[1768340370245,2.23672814,143.44,143.39,0.67766815]
[1768340370421,2.23672814,143.43,143.39,0.67766815]
[1768340371124,2.33572814,143.43,143.39,0.67766815]
[1768340373145,0.099,143.43,143.4,0.67766815]
[1768340375449,2.49672814,143.45,143.4,0.67766815]
[1768340375825,0.26,143.45,143.4,2.91439629]
[1768340376037,0.26,143.47,143.42,0.71108043]
[1768340376351,2.49672814,143.47,143.42,0.71108043]
[1768340376849,9.46684856,143.47,143.42,0.71108043]
[1768340377044,2.49672814,143.47,143.42,0.71108043]
[1768340379051,0.099,143.46,143.42,0.71108043]
[1768340379828,2.49511814,143.45,143.42,0.71108043]
[1768340380029,2.23672814,143.45,143.42,0.71108043]
[1768340382854,0.26,143.46,143.42,0.71108043]
[1768340383055,2.23672814,143.45,143.42,0.71108043]
[1768340386752,2.49672814,143.46,143.42,0.71108043]
[1768340395167,0.26,143.46,143.42,0.71108043]
[1768340395659,2.49672814,143.46,143.42,0.71108043]
[1768340398447,0.25839,143.44,143.39,0.71108043]
[1768340398663,2.23672814,143.45,143.39,0.71108043]
[1768340399578,2.23672814,143.45,143.39,2.94780857]
[1768340399740,2.23672814,143.45,143.4,0.71108043]
[1768340401156,2.23672814,143.44,143.4,0.71108043]
[1768340401457,2.23672814,143.43,143.4,0.71108043]
[1768340401842,2.23672814,143.42,143.4,0.71108043]
[1768340402044,0.25839,143.4,143.38,0.1]
[1768340402253,2.23672814,143.39,143.38,0.1]
[1768340402543,2.23672814,143.39,143.37,0.71108043]
[1768340404063,2.23672814,143.39,143.36,0.81108043]
[1768340409875,0.099,143.39,143.36,0.81108043]
[1768340410066,2.23672814,143.38,143.36,0.81108043]
[1768340410776,0.00288271,143.38,143.36,0.81108043]
[1768340412377,2.23672814,143.37,143.35,1.07078451]
[1768340412581,2.23672814,143.36,143.35,1.07078451]
[1768340412880,2.23672814,143.36,143.35,0.11784332]
[1768340413172,2.23672814,143.36,143.33,0.1]
[1768340413371,3.50015726,143.36,143.33,0.82294121]
[1768340414674,20.93392222,143.4,143.33,0.82294121]
[1768340414675,3.50015726,143.35,143.33,0.82294121]
[1768340414879,6.97535092,143.37,143.34,0.72294121]
[1768340415071,3.50015726,143.35,143.34,0.72294121]
[1768340415270,1e-08,143.35,143.34,0.72294121]
[1768340415474,1e-08,143.35,143.33,0.1]
[1768340416174,3.50015726,143.34,143.32,0.1]
[1768340416371,3.50015726,143.33,143.31,2.65192664]
[1768340416964,0.14056983,143.35,143.31,2.65192664]
[1768340417474,7.65170213,143.36,143.32,0.69351381]
[1768340417672,3.50015726,143.35,143.32,0.69351381]
[1768340418568,10.47561849,143.36,143.32,0.69351381]
[1768340419082,3.50015726,143.36,143.32,0.69351381]
[1768340420776,4.17108133,143.35,143.32,0.69351381]
[1768340421482,3.50015726,143.35,143.32,0.69351381]
[1768340422879,7.6520913,143.36,143.32,0.69351381]
[1768340423065,3.50015726,143.35,143.32,0.69351381]
[1768340424085,7.6520913,143.36,143.32,0.69351381]
[1768340424487,3.50015726,143.34,143.32,0.69351381]
[1768340425000,3.50015726,143.35,143.32,0.69351381]
[1768340425787,3.50015726,143.34,143.32,0.69351381]
[1768340425973,3.50015726,143.34,143.31,2.65192664]
[1768340425974,3.50015726,143.34,143.31,3.34544045]
[1768340426987,3.50015726,143.34,143.32,0.69351381]
[1768340427787,3.64539738,143.35,143.32,0.69351381]
[1768340429174,3.64539738,143.35,143.31,3.34544045]
[1768340429770,0.67092407,143.34,143.31,3.34544045]
[1768340432090,3.50015726,143.35,143.31,3.34544045]
[1768340432091,4.17639127,143.35,143.31,3.34544045]
[1768340433282,0.14524012,143.34,143.31,2.65192664]
[1768340433483,3.65065422,143.32,143.29,21.16494421]
[1768340433686,3.55065422,143.34,143.3,0.69351381]
[1768340433885,10.52671648,143.35,143.3,0.69351381]
[1768340434400,3.55065422,143.36,143.31,0.69351381]
[1768340436398,10.52623154,143.36,143.31,0.69351381]
[1768340436777,0.05049696,143.36,143.31,0.69351381]
[1768340436978,3.55065422,143.36,143.31,0.69351381]
[1768340438598,3.50015726,143.35,143.31,0.69351381]
[1768340439799,10.52613,143.36,143.31,0.69351381]
[1768340440179,3.55065422,143.36,143.31,0.69351381]
[1768340440586,0.05049696,143.36,143.32,0.66151703]
[1768340441701,3.55065422,143.36,143.32,0.66151703]
[1768340443714,0.05049696,143.36,143.32,0.66151703]
[1768340444077,3.55065422,143.36,143.32,0.66151703]
[1768340444279,0.05049696,143.35,143.32,0.66151703]
[1768340444786,3.55065422,143.36,143.32,0.66151703]
[1768340445596,3.50015726,143.37,143.32,0.66151703]
[1768340446111,3.55065422,143.37,143.32,0.66151703]
[1768340446807,10.52565654,143.37,143.32,0.66151703]
[1768340447995,0.05049696,143.36,143.32,0.66151703]
[1768340449008,10.52565654,143.37,143.32,0.66151703]
[1768340449501,0.05049696,143.36,143.32,0.66151703]
[1768340451816,10.52565654,143.37,143.32,0.66151703]
[1768340451992,0.05049696,143.36,143.32,0.66151703]